bitfinex/quotes_SOLUSD_20250107
["timestamp","ask_amount","ask_price","bid_price","bid_amount"]
[1736265646664,10.3675,207.25,207.12,22.38418915]
[1736265646873,20.0,207.22,207.11,0.72370207]
[1736265647047,20.0,207.22,207.08,22.38418915]
[1736265647230,20.0,207.22,207.1,22.38418915]
[1736265647430,20.0,207.22,207.11,24.62630301]
[1736265647671,20.0,207.22,207.11,46.88500216]
[1736265647859,20.0,207.22,207.11,0.72392901]
[1736265648061,20.0,207.22,207.08,22.38418915]
[1736265648241,0.72342244,207.21,207.05,23.10815605]
[1736265648436,20.0,207.17,207.05,0.7239669]
[1736265648641,0.72342244,207.16,207.03,22.38418915]
[1736265648852,0.72342244,207.16,207.0,0.72415347]
[1736265649044,0.72342244,207.16,207.02,22.38418915]
[1736265649451,0.72342244,207.16,207.0,22.38418915]
[1736265649770,20.0,207.12,207.0,22.38418915]
[1736265649951,20.0,207.12,207.01,23.10845415]
[1736265650152,20.0,207.12,207.06,23.776884]
[1736265650353,20.0,207.12,207.08,23.776884]
[1736265650674,2.5277,207.2,207.13,0.12549]
[1736265650833,9.9915,207.19,207.13,0.12549]
[1736265651236,9.9915,207.19,207.08,22.38418915]
[1736265651464,9.9915,207.19,207.07,22.38418915]
[1736265651761,20.0,207.16,207.1,23.902374]
[1736265652136,20.0,207.16,207.1,0.12549]
[1736265652336,20.0,207.16,207.1,23.902374]
[1736265652754,20.0,207.16,207.09,0.12549]
[1736265652953,20.0,207.16,207.11,0.12549]
[1736265653558,20.0,207.16,207.06,22.38418915]
[1736265653759,20.0,207.16,207.05,22.38418915]
[1736265653950,20.0,207.16,207.06,0.72410583]
[1736265654151,20.0,207.16,207.04,22.38418915]
[1736265654389,20.0,207.16,207.05,23.10836543]
[1736265654594,20.0,207.16,207.05,0.72417628]
[1736265654747,0.72342244,207.15,207.02,22.38418915]
[1736265654947,0.72342244,207.15,207.01,22.38418915]
[1736265655168,0.72342244,207.15,206.98,22.38418915]
[1736265655373,0.72342244,207.15,207.0,22.38418915]
[1736265655948,0.72342244,207.15,207.01,0.72429805]
[1736265656178,20.0,207.11,207.02,23.902374]
[1736265656388,20.0,207.11,206.98,23.10853756]
[1736265656751,20.0,207.11,206.99,22.38418915]
[1736265656970,20.0,207.11,207.0,23.776884]
[1736265657288,20.0,207.11,207.03,0.12549]
[1736265657464,20.0,207.11,207.03,23.902374]
[1736265657666,20.0,207.11,207.03,0.12549]
[1736265657982,20.0,207.11,207.0,23.902374]
[1736265658678,20.0,207.11,206.99,22.38418915]
[1736265658985,20.0,207.11,207.0,46.28656315]
[1736265659385,20.0,207.11,207.0,23.902374]
[1736265660453,20.0,207.06,206.9,22.38418915]
[1736265660662,0.72342244,207.05,206.89,0.72458166]
[1736265660866,0.72342244,207.05,206.88,22.38418915]
[1736265661091,0.72342244,207.05,206.91,22.38418915]
[1736265661254,10.3745,207.09,207.0,22.38418915]
[1736265661453,10.3745,207.09,207.02,22.38418915]
[1736265661762,10.3745,207.09,207.03,23.902374]
[1736265662202,7.08,207.26,206.95,0.7244006]
[1736265662203,2.6167,207.15,207.07,23.902374]
[1736265662413,10.3745,207.14,207.09,46.28656315]
[1736265662559,10.3745,207.19,207.14,23.902374]
[1736265662978,10.3745,207.19,207.14,0.12549]
[1736265663181,2.6167,207.21,207.14,22.38418915]
[1736265663390,10.3745,207.24,207.19,22.38418915]
[1736265663701,2.6167,207.28,207.21,23.902374]
[1736265664472,1.91034034,207.36,207.26,22.36395568]
[1736265664473,10.0849,207.36,207.26,22.36395568]
[1736265664801,10.0849,207.36,207.2,22.36395568]
[1736265664802,10.0849,207.36,207.31,22.48944568]
[1736265664977,10.0849,207.44,207.34,22.36395568]
[1736265665169,10.0849,207.44,207.36,22.36395568]
[1736265665367,10.0849,207.44,207.38,46.26632968]
[1736265665562,0.72342244,207.52,207.42,46.26632968]
[1736265665766,10.80832244,207.53,207.42,46.26632968]
[1736265666079,1.96187536,207.59,207.47,22.36395568]
[1736265666266,10.80832244,207.61,207.49,22.36395568]
[1736265666267,0.72342244,207.58,207.49,22.36395568]
[1736265666461,0.72342244,207.6,207.44,0.72285044]
[1736265666665,0.72342244,207.6,207.47,22.36395568]
[1736265666885,10.0849,207.61,207.48,22.36395568]
[1736265667084,10.0849,207.61,207.52,46.14083968]
[1736265667299,0.72342244,207.6,207.52,22.36395568]
[1736265667606,0.09313995,207.53,207.52,20.0]
[1736265667772,0.09313995,207.53,207.52,36.24399583]
[1736265667971,0.09945063,207.55,207.53,60.02087983]
[1736265668195,0.09945063,207.55,207.52,30.0]
[1736265668196,0.09945063,207.55,207.54,60.74311666]
[1736265668380,0.09945063,207.55,207.54,24.49912083]
[1736265668798,0.09945063,207.55,207.54,23.776884]
[1736265669498,0.09945063,207.55,207.54,60.02087983]
[1736265669668,0.09945063,207.55,207.54,24.62485991]
[1736265669868,0.09945063,207.55,207.54,23.902374]
[1736265670372,0.09945063,207.55,207.54,60.14636983]
[1736265670588,0.09945063,207.55,207.54,23.902374]
[1736265672264,0.09945063,207.55,207.54,60.14636983]
[1736265672671,10.0835,207.69,207.55,23.902374]
[1736265672874,10.0835,207.69,207.57,60.14636983]
[1736265673074,20.9053872,207.76,207.57,60.14636983]
[1736265673374,10.4487,207.79,207.62,23.902374]
[1736265673698,10.4487,207.79,207.71,0.12549]
[1736265673867,10.4487,207.79,207.73,0.12549]
[1736265674073,2.4924,207.83,207.74,23.902374]
[1736265674472,2.4924,207.83,207.73,0.12549]
[1736265674892,22.4924,207.83,207.73,0.12549]
[1736265675089,0.72342244,207.82,207.71,23.902374]
[1736265675374,0.72342244,207.82,207.62,0.72186792]
[1736265675611,0.72342244,207.82,207.63,36.24399583]
[1736265675895,20.72342244,207.82,207.63,60.02087983]
[1736265676078,20.72342244,207.82,207.66,0.12549]
[1736265676602,0.72342244,207.82,207.68,0.12549]
[1736265676764,2.4924,207.83,207.71,23.776884]
[1736265676972,2.4924,207.83,207.73,0.12549]
[1736265677174,0.72342244,207.82,207.73,0.12549]
[1736265677594,0.72342244,207.82,207.67,23.776884]
[1736265677784,0.72342244,207.82,207.63,23.902374]
[1736265677988,0.72342244,207.82,207.63,60.14636983]
[1736265678207,20.72342244,207.82,207.63,60.14636983]
[1736265678511,20.72342244,207.82,207.65,23.902374]
[1736265679075,0.72342244,207.82,207.65,60.14636983]
[1736265679310,20.72342244,207.82,207.64,23.902374]
[1736265679516,20.72342244,207.82,207.66,23.902374]
[1736265680013,20.72342244,207.82,207.6,56.24399583]
[1736265680014,0.72342244,207.82,207.7,60.14636983]
[1736265680183,2.4924,207.83,207.72,60.14636983]
[1736265680512,2.4924,207.83,207.74,23.902374]
[1736265680709,10.4487,207.88,207.76,60.14636983]
[1736265681014,10.4487,207.88,207.78,23.902374]
[1736265681188,12.33020273,207.88,207.78,60.14636983]
[1736265681387,12.33020273,207.88,207.77,0.12549]
[1736265681388,10.4487,207.88,207.77,0.12549]
[1736265681591,0.72342244,207.87,207.77,0.12549]
[1736265681797,10.4487,207.88,207.77,0.12549]
[1736265682107,20.0,207.85,207.65,36.96567217]
[1736265682312,0.72342244,207.84,207.7,36.24399583]
[1736265682515,20.0,207.85,207.74,0.12549]
[1736265682682,0.72342244,207.87,207.76,0.12549]
[1736265682883,11.17212244,207.88,207.76,0.12549]
[1736265683081,20.0,207.85,207.76,23.902374]
[1736265683617,10.4487,207.88,207.79,23.902374]
[1736265683919,20.0,207.85,207.79,0.12549]
[1736265684207,20.0,207.85,207.78,0.12549]
[1736265684504,10.4487,207.88,207.8,0.12549]
[1736265684920,20.0,207.85,207.8,0.12549]
[1736265685212,20.0,207.85,207.79,23.902374]
[1736265685796,20.0,207.85,207.75,36.24399583]
[1736265685989,20.0,207.85,207.76,23.902374]
[1736265686322,20.0,207.85,207.78,60.14636983]
[1736265686491,21.91468409,207.91,207.82,0.12549]
[1736265686815,10.8384,207.94,207.84,0.12549]
[1736265687193,10.8384,207.94,207.77,7.0]
[1736265687194,10.8384,207.94,207.88,0.12549]
[1736265687411,0.0937878,207.89,207.88,23.902374]
[1736265687607,0.0937878,207.89,207.88,24.62362127]
[1736265688222,0.0900923,207.9,207.88,60.8676171]
[1736265688428,0.0900923,207.9,207.89,60.14636983]
[1736265688597,0.0900923,207.9,207.89,23.902374]
[1736265688922,0.0900923,207.9,207.78,36.96529449]
[1736265689111,0.0900923,207.9,207.7,172.94399583]
[1736265689112,0.0900923,207.9,207.74,36.9654358]
[1736265689310,0.0900923,207.9,207.74,0.72143997]
[1736265689490,20.0,207.86,207.69,0.72159992]
[1736265689698,25.72342244,207.85,207.66,0.72172582]
[1736265689887,25.72342244,207.85,207.63,0.72185971]
[1736265690088,20.72342244,207.85,207.64,36.24399583]
[1736265690413,0.72342244,207.85,207.73,36.24399583]
[1736265690596,20.0,207.86,207.75,36.24399583]
[1736265690925,20.0,207.86,207.77,23.902374]
[1736265691120,20.0,207.86,207.77,0.12549]
[1736265691288,20.0,207.86,207.8,0.12549]
[1736265691497,20.0,207.86,207.78,23.776884]
[1736265691792,20.0,207.86,207.79,23.902374]
[1736265692125,12.8241,207.89,207.82,0.12549]
[1736265692320,10.148,207.89,207.82,23.902374]
[1736265692616,10.148,207.89,207.82,24.62382018]
[1736265693027,10.148,207.89,207.84,23.902374]
[1736265693227,0.0900923,207.9,207.84,23.902374]
[1736265693734,0.0900923,207.9,207.72,6.88160754]
[1736265693735,0.0900923,207.9,207.82,0.72143951]
[1736265694022,0.0900923,207.9,207.81,36.24399583]
[1736265694233,0.0900923,207.9,207.83,36.36948583]
[1736265694429,0.0900923,207.9,207.76,5.0]
[1736265694430,0.0900923,207.9,207.88,36.24399583]
[1736265694599,0.0900923,207.9,207.89,37.09071535]
[1736265694799,0.0900923,207.9,207.89,0.84671952]
[1736265695003,0.0900923,207.9,207.89,37.09071535]
[1736265695207,0.09470579,207.92,207.9,0.12549]
[1736265695528,0.09470579,207.92,207.9,36.24399583]
[1736265695731,0.09470579,207.92,207.9,36.96518109]
[1736265696031,0.09470579,207.92,207.9,96.98606092]
[1736265696199,0.09470579,207.92,207.9,96.26487566]
[1736265696693,20.0,208.06,207.9,36.24399583]
[1736265696896,0.72342244,208.05,207.92,0.12549]
[1736265697100,20.0,208.06,207.93,23.776884]
[1736265697416,10.405,208.09,207.98,23.776884]
[1736265697722,10.405,208.09,208.0,23.776884]
[1736265698138,20.0,208.06,207.99,23.776884]
[1736265698430,10.405,208.09,207.99,23.776884]
[1736265699201,10.405,208.09,208.02,60.02087983]
[1736265699418,36.95111895,208.14,208.02,60.02087983]
[1736265699617,10.6959,208.15,208.04,23.776884]
[1736265699830,10.6959,208.15,208.02,23.776884]
[1736265700220,20.0,208.12,208.03,23.776884]
[1736265700439,20.0,208.12,208.03,23.684104]
[1736265700639,0.72342244,208.11,207.96,36.96471362]
[1736265700828,20.0,208.12,208.01,36.24399583]
[1736265701253,10.6959,208.15,208.03,36.24399583]
[1736265701422,10.6959,208.15,208.04,36.24399583]
[1736265701748,20.0,208.12,208.03,36.24399583]
[1736265701953,10.6959,208.15,208.02,36.24399583]
[1736265702152,20.0,208.12,208.05,36.24399583]
[1736265702457,20.0,208.12,207.99,36.24399583]
[1736265702662,20.0,208.12,207.95,36.24399583]
[1736265702821,0.72342244,208.11,207.96,0.72084503]
[1736265703174,20.0,208.12,207.98,60.14636983]
[1736265703352,20.0,208.12,207.98,0.12549]
[1736265703944,21.9339161,208.12,207.98,0.12549]
[1736265704144,21.9339161,208.12,207.98,23.902374]
[1736265704832,21.9339161,208.12,208.0,60.02087983]
[1736265705019,21.9339161,208.12,208.03,23.684104]
[1736265705219,0.72342244,208.11,208.03,23.684104]
[1736265705450,21.9339161,208.12,207.97,0.12549]
[1736265705641,0.72342244,208.11,207.93,0.7209318]
[1736265705843,25.0,208.09,207.9,36.24399583]
[1736265706030,20.0,208.06,207.91,0.72107501]
[1736265706230,20.0,208.06,207.91,36.96507084]
[1736265706430,0.72342244,208.11,207.92,36.24399583]
[1736265706638,0.72342244,208.11,207.96,36.24399583]
[1736265706852,1.9339161,208.12,208.03,36.36948583]
[1736265707057,10.6959,208.15,208.03,36.36948583]
[1736265707365,10.6959,208.15,207.97,0.72089592]
[1736265707366,12.6584481,208.15,208.07,23.902374]
[1736265707533,0.0908713,208.09,208.08,60.14636983]
[1736265707731,0.0908713,208.09,208.08,24.62291812]
[1736265709247,0.0908713,208.09,208.08,24.40464812]
[1736265709641,0.0908713,208.09,208.08,23.684104]
[1736265709847,0.09453619,208.1,208.09,0.12549]
[1736265710050,0.09453619,208.1,208.09,36.36948583]
[1736265711262,0.10444622,208.13,208.09,36.24399583]
[1736265711433,0.10444622,208.13,208.12,36.24399583]
[1736265711636,0.10444622,208.13,208.12,60.14636983]
[1736265711959,0.10444622,208.13,208.12,23.902374]
[1736265712730,0.10444622,208.13,208.12,23.684104]
[1736265713064,2.5361,208.25,208.12,36.24399583]
[1736265713359,2.5361,208.25,208.11,36.24399583]
[1736265713535,20.0,208.24,208.09,36.24399583]
[1736265713740,20.0,208.24,208.11,36.24399583]
[1736265713931,20.0,208.24,208.12,36.96432507]
[1736265714160,20.0,208.24,208.12,0.72032924]
[1736265714734,20.0,208.24,208.12,36.96432507]
[1736265715173,20.0,208.24,208.13,23.776884]
[1736265715466,20.0,208.24,208.1,36.24399583]
[1736265715663,9.9773,208.27,208.15,36.24399583]
[1736265715840,9.9773,208.27,208.16,36.96419355]
[1736265716166,20.0,208.24,208.19,36.24399583]
[1736265716338,2.7071,208.31,208.22,36.24399583]
[1736265716536,2.7071,208.31,208.2,0.72012727]
[1736265716537,2.7071,208.31,208.23,0.72002385]
[1736265716739,9.8486,208.33,208.21,0.72003916]
[1736265717063,20.0,208.3,208.22,36.36948583]
[1736265717264,9.8486,208.33,208.23,0.71997441]
[1736265717766,9.8486,208.33,208.24,23.776884]
[1736265718067,9.8486,208.33,208.21,36.24399583]
[1736265718365,20.0,208.3,208.22,0.84548949]
[1736265718566,20.0,208.3,208.22,0.71999949]
[1736265718876,20.0,208.3,208.17,36.24399583]
[1736265719077,20.0,208.3,208.2,36.36948583]
[1736265719368,20.0,208.3,208.23,0.12549]
[1736265719663,20.0,208.3,208.13,6.92]
[1736265719664,20.0,208.3,208.16,36.96399997]
[1736265719863,20.0,208.3,208.16,0.72000414]
[1736265720069,20.0,208.3,208.17,36.24399583]
[1736265720241,20.0,208.3,208.19,23.902374]
[1736265720688,20.0,208.3,208.18,0.72014688]
[1736265720838,20.0,208.3,208.22,23.776884]
[1736265721040,2.5877,208.37,208.27,36.24399583]
[1736265721344,216.9,208.53,208.34,36.24399583]
[1736265721345,12.5744,208.44,208.34,36.24399583]
[1736265721552,0.72342244,208.49,208.35,60.02087983]
[1736265721751,0.72342244,208.5,208.35,23.776884]
[1736265721977,20.0,208.48,208.35,23.776884]
[1736265722169,0.72342244,208.47,208.3,36.24399583]
[1736265722385,5.72342244,208.47,208.29,0.71962032]
[1736265722606,5.72342244,208.47,208.25,36.24399583]
[1736265722894,20.0,208.44,208.27,0.12549]
[1736265723187,20.0,208.39,208.25,0.71982056]
[1736265723390,20.0,208.39,208.26,0.12549]
[1736265723999,3.28622244,208.38,208.23,6.92]
[1736265724175,0.12549,208.37,208.23,6.92]
[1736265724374,0.12549,208.37,208.24,23.776884]
[1736265725056,0.84891244,208.37,208.24,23.776884]
[1736265725252,0.12549,208.37,208.24,23.776884]
[1736265725486,0.12549,208.37,208.24,23.684104]
[1736265725717,20.12549,208.37,208.17,0.71994258]
[1736265725889,20.12549,208.37,208.18,36.24399583]
[1736265726194,20.12549,208.37,208.19,37.08959694]
[1736265726403,20.12549,208.37,208.2,0.12549]
[1736265726695,0.12549,208.28,208.13,0.72011719]
[1736265726901,0.84891244,208.28,208.1,36.24399583]
[1736265727085,0.84891244,208.28,208.11,80.22432109]
[1736265727255,0.84891244,208.28,208.06,2.811]
[1736265727256,0.12549,208.24,208.07,36.24399583]
[1736265727582,0.12549,208.18,208.03,0.72044655]
[1736265727885,0.84891244,208.18,208.03,0.72044655]
[1736265728063,0.12549,208.18,208.07,36.24399583]
[1736265728265,0.12549,208.18,208.09,36.24399583]
[1736265728454,0.12549,208.18,208.08,36.24399583]
[1736265728776,0.12549,208.18,208.03,20.0]
[1736265728777,10.4267,208.22,208.14,36.24399583]
[1736265728980,12.5053117,208.29,208.19,0.12549]
[1736265729179,20.0,208.26,208.18,0.12549]
[1736265729669,0.12549,208.25,208.13,0.72032651]
[1736265729998,0.84891244,208.25,208.09,7.58036842]
[1736265730208,20.0,208.26,208.1,36.36948583]
[1736265730504,0.12549,208.24,208.09,7.58036842]
[1736265730896,20.12549,208.24,208.06,0.72052302]
[1736265731075,0.12549,208.22,208.07,0.12549]
[1736265731279,0.12549,208.22,208.09,23.902374]
[1736265732000,0.12549,208.22,208.06,0.12549]
[1736265732308,0.12549,208.2,208.06,0.12549]
[1736265732477,0.12549,208.18,208.04,36.24399583]
[1736265732808,0.12549,208.18,208.05,0.12549]
[1736265732809,0.12549,208.13,208.05,0.12549]
[1736265733106,20.84891244,208.13,207.95,0.15]
[1736265733272,25.12549,208.11,207.95,0.15]
[1736265733473,0.12549,208.09,207.87,36.96502474]
[1736265733793,0.12549,208.05,207.87,0.72102891]
[1736265733998,20.0,208.01,207.87,0.72102891]
[1736265734175,0.12549,208.0,207.81,36.24399583]
[1736265734473,0.12549,208.0,207.8,41.9652285]
[1736265734673,0.12549,208.0,207.87,60.14636983]
[1736265734900,0.12549,208.0,207.84,36.24399583]
[1736265735113,20.12549,208.0,207.81,43.82518019]
[1736265735287,20.12549,208.0,207.84,36.24399583]
[1736265735481,20.12549,208.0,207.83,36.24399583]
[1736265735679,0.12549,208.0,207.84,0.72132707]
[1736265735883,0.12549,208.0,207.85,36.36948583]
[1736265736082,0.12549,208.0,207.87,0.12549]
[1736265736687,0.12549,208.0,207.91,0.12549]
[1736265737003,0.12549,208.0,207.85,36.24399583]
[1736265737206,0.12549,208.0,207.8,0.879967]
[1736265737411,0.12549,207.98,207.76,36.24399583]
[1736265737732,0.12549,207.98,207.8,36.24399583]
[1736265737733,0.84891244,207.98,207.8,36.24399583]
[1736265737916,20.84891244,207.98,207.79,23.776884]
[1736265738093,0.12549,207.93,207.75,36.96548522]
[1736265738290,0.84891244,207.93,207.79,36.24399583]
[1736265738607,10.0,208.01,207.84,23.776884]
[1736265738809,10.0,208.01,207.8,36.9654558]
[1736265738810,17.7608,208.04,207.85,0.12549]
[1736265739005,5.72342244,208.03,207.85,0.12549]
[1736265739202,0.12549,208.01,207.85,0.12549]
[1736265739512,20.84891244,208.01,207.84,0.12549]
[1736265739821,0.12549,207.98,207.84,23.902374]
[1736265739993,0.12549,207.98,207.81,36.24399583]
[1736265739994,0.84891244,207.98,207.81,36.24399583]
[1736265740192,0.12549,207.96,207.79,36.24399583]
[1736265740423,0.84891244,207.96,207.81,0.12549]
[1736265740594,0.84891244,207.96,207.81,60.14636983]
[1736265740791,0.72342244,208.01,207.83,23.902374]
[1736265741008,0.72342244,208.03,207.87,60.14636983]
[1736265741297,0.72342244,208.03,207.8,36.24399583]
[1736265741298,0.72342244,208.02,207.91,23.902374]
[1736265741606,20.84891244,208.01,207.84,36.24399583]
[1736265741821,20.12549,208.01,207.8,36.24399583]
[1736265742022,20.12549,208.01,207.78,0.72132854]
[1736265742023,0.12549,207.95,207.75,36.96549576]
[1736265742211,0.12549,207.95,207.74,0.15]
[1736265742212,20.0,207.87,207.74,0.15]
[1736265742523,0.12549,207.86,207.76,23.902374]
[1736265743109,0.12549,207.86,207.76,0.12549]
[1736265743513,0.12549,207.86,207.76,23.902374]
[1736265743703,0.12549,207.86,207.75,0.12549]
[1736265743903,0.12549,207.86,207.77,0.12549]
[1736265744307,0.84891244,207.86,207.77,0.12549]
[1736265744513,0.84891244,207.86,207.67,36.24399583]
[1736265744514,0.84891244,207.86,207.72,36.24399583]
[1736265744714,0.84891244,207.86,207.74,23.902374]
[1736265745101,0.84891244,207.86,207.66,36.24399583]
[1736265745434,0.12549,207.84,207.64,7.58189238]
[1736265745743,0.84891244,207.84,207.66,36.24399583]
[1736265745905,0.72342244,207.87,207.75,23.776884]
[1736265746104,2.6165,207.88,207.75,23.902374]
[1736265746105,0.72342244,207.86,207.75,23.902374]
[1736265746303,2.6165,207.88,207.75,0.12549]
[1736265746615,0.12549,207.86,207.75,23.902374]
[1736265746815,0.12549,207.86,207.71,36.96577201]
[1736265747117,0.12549,207.86,207.72,23.902374]
[1736265747314,0.12549,207.86,207.72,0.12549]
[1736265747526,0.12549,207.86,207.72,23.902374]
[1736265747722,0.12549,207.86,207.67,36.96577172]
[1736265747925,0.12549,207.86,207.68,36.24399583]
[1736265748118,0.12549,207.86,207.69,23.902374]
[1736265748513,0.12549,207.86,207.71,0.12549]
[1736265748923,2.6165,207.88,207.77,23.902374]
[1736265749129,2.6165,207.88,207.79,60.14636983]
[1736265749335,10.5741,207.9,207.81,23.902374]
[1736265749525,10.5741,207.9,207.82,0.12549]
[1736265750046,0.72342244,207.89,207.77,23.776884]
[1736265750349,0.12549,207.86,207.66,38.17583717]
[1736265750647,0.84891244,207.86,207.68,0.12549]
[1736265750845,0.84891244,207.86,207.73,23.902374]
[1736265751144,0.12549,207.86,207.73,24.62403989]
[1736265751347,0.72342244,207.85,207.7,36.24399583]
[1736265751546,0.12549,207.85,207.71,0.72177379]
[1736265751719,0.12549,207.85,207.7,23.902374]
[1736265752036,0.12549,207.85,207.7,0.72177411]
[1736265752340,0.12549,207.85,207.71,0.12549]
[1736265753243,0.12549,207.83,207.67,0.12549]
[1736265753421,0.12549,207.83,207.71,36.19381622]
[1736265753743,0.12549,207.83,207.73,23.902374]
[1736265754039,0.12549,207.81,207.73,0.12549]
[1736265754243,2.6628,207.84,207.73,36.91564461]
[1736265754442,2.6628,207.84,207.74,23.902374]
[1736265754616,0.12549,207.83,207.74,0.12549]
[1736265754810,0.84891244,207.83,207.66,36.19381622]
[1736265755010,0.84891244,207.83,207.62,36.19381622]
[1736265755311,10.5937,207.78,207.69,36.19381622]
[1736265755538,10.5937,207.78,207.63,0.72203421]
[1736265755539,0.12549,207.74,207.63,20.0]
[1736265755794,0.12549,207.74,207.64,0.72197719]
[1736265755931,0.12549,207.74,207.67,23.902374]
[1736265756137,0.12549,207.74,207.67,60.09619022]
[1736265756338,0.12549,207.74,207.68,0.72197572]
[1736265756546,0.12549,207.74,207.65,36.19381622]
[1736265756856,0.12549,207.74,207.64,36.19381622]
[1736265757140,0.12549,207.74,207.66,0.12549]
[1736265757561,0.12549,207.74,207.64,0.12549]
[1736265757847,0.12549,207.74,207.64,23.902374]
[1736265758035,0.84891244,207.74,207.64,23.902374]
[1736265758341,0.84891244,207.74,207.62,0.12549]
[1736265758636,0.12549,207.74,207.64,36.33447916]
[1736265758850,0.12549,207.74,207.66,0.12549]
[1736265759036,0.12549,207.74,207.61,36.35898916]
[1736265759037,0.84891244,207.74,207.61,0.15]
[1736265759547,0.84891244,207.74,207.62,0.12549]
[1736265759746,0.72342244,207.77,207.65,20.0]
[1736265759936,0.12549,207.76,207.65,23.776884]
[1736265760126,0.12549,207.74,207.65,23.776884]
[1736265760328,0.84891244,207.74,207.61,0.15]
[1736265760538,0.84891244,207.74,207.62,0.12549]
[1736265760850,10.5937,207.78,207.68,0.12549]
[1736265761054,0.72342244,207.77,207.67,23.776884]
[1736265761220,0.12549,207.77,207.65,36.20898916]
[1736265761421,0.12549,207.77,207.66,23.776884]
[1736265761649,0.12549,207.77,207.68,23.776884]
[1736265761850,0.84891244,207.77,207.68,23.776884]
[1736265762185,0.84891244,207.77,207.65,23.902374]
[1736265762447,0.12549,207.74,207.65,23.902374]
[1736265762655,0.12549,207.74,207.65,0.12549]
[1736265762826,0.12549,207.74,207.61,0.15]
[1736265762827,0.84891244,207.74,207.61,0.15]
[1736265763145,0.84891244,207.74,207.62,36.20898916]
[1736265763146,0.12549,207.74,207.62,36.20898916]
[1736265763351,0.12549,207.74,207.63,60.70797741]
[1736265763547,0.12549,207.74,207.63,24.49898825]
[1736265763764,0.12549,207.74,207.61,23.926884]
[1736265764053,0.84891244,207.74,207.61,23.926884]
[1736265764233,0.84891244,207.74,207.61,0.15]
[1736265764426,0.12549,207.74,207.62,0.12549]
[1736265764824,0.12549,207.74,207.59,36.20898916]
[1736265765025,0.12549,207.74,207.58,56.20898916]
[1736265765240,0.12549,207.74,207.58,0.72222735]
[1736265765456,0.12549,207.72,207.58,0.72222735]
[1736265765652,0.12549,207.72,207.59,0.12549]
[1736265765842,0.84891244,207.72,207.59,23.902374]
[1736265766642,0.12549,207.72,207.61,23.776884]
[1736265766860,2.4799,207.73,207.64,0.12549]
[1736265767157,0.12549,207.71,207.56,36.20898916]
[1736265767360,0.12549,207.71,207.55,0.72208796]
[1736265767662,0.12549,207.69,207.55,0.72208796]
[1736265767955,0.12549,207.69,207.52,36.20898916]
[1736265767956,0.12549,207.66,207.52,36.9313696]
[1736265768256,0.12549,207.66,207.5,6.82]
[1736265768257,0.12549,207.66,207.54,36.93140976]
[1736265768461,0.12549,207.66,207.55,24.027864]
[1736265768631,0.12549,207.66,207.57,23.902374]
[1736265769224,0.12549,207.66,207.61,0.12549]
[1736265769443,10.4837,207.7,207.63,23.902374]
[1736265769652,10.4837,207.7,207.67,0.12549]
[1736265769824,2.4799,207.73,207.62,0.84751007]
[1736265770028,0.12549,207.72,207.59,36.20898916]
[1736265770254,0.12549,207.72,207.61,60.11136316]
[1736265770433,0.12549,207.72,207.63,0.12549]
[1736265770637,0.12549,207.72,207.64,0.12549]
[1736265770830,10.1875,207.76,207.69,0.12549]
[1736265771074,10.1875,207.76,207.71,0.12549]
[1736265771233,10.1875,207.76,207.71,0.25098]
[1736265771550,2.4934,207.79,207.64,0.72207046]
[1736265771551,2.4934,207.79,207.72,36.20898916]
[1736265771753,2.4934,207.79,207.71,23.902374]
[1736265772069,2.4934,207.79,207.71,23.776884]
[1736265772227,2.4934,207.79,207.66,36.20898916]
[1736265772425,0.12549,207.78,207.67,23.902374]
[1736265772627,20.12549,207.78,207.67,24.62431959]
[1736265773234,20.12549,207.78,207.66,24.027864]
[1736265773458,20.12549,207.78,207.67,0.72196926]
[1736265773668,20.12549,207.78,207.69,23.776884]
[1736265773867,20.0,207.78,207.7,0.12549]
[1736265774360,20.0,207.78,207.67,23.902374]
[1736265774595,0.12549,207.77,207.67,0.12549]
[1736265774869,0.12549,207.77,207.69,24.027864]